bitfinex/quotes_ETHUSD_20260107
["timestamp","ask_amount","ask_price","bid_price","bid_amount"]
[1767795879140,0.36144063,3196.0,3195.1,6.93133103]
[1767795879743,0.36144063,3196.0,3195.1,3.80154263]
[1767795879945,0.36144063,3196.0,3195.1,6.93132278]
[1767795880830,3.96484689,3196.0,3195.1,3.80154263]
[1767795881338,3.96484689,3196.0,3195.1,6.93131513]
[1767795881537,0.39648469,3195.9,3195.1,6.93131513]
[1767795881738,0.39648469,3195.9,3195.2,3.80154263]
[1767795883362,0.42778653,3195.9,3194.9,4.62354263]
[1767795883659,0.42778653,3195.9,3195.0,3.80154263]
[1767795884232,0.39648469,3195.9,3195.0,3.83284153]
[1767795884432,0.4000891,3195.8,3195.0,3.80154263]
[1767795885132,0.001,3195.7,3195.0,3.80154263]
[1767795885579,0.001,3195.7,3195.2,3.80154263]
[1767795887462,0.001,3195.7,3195.3,3.80154263]
[1767795889764,3.60440626,3195.7,3194.6,3.80154263]
[1767795889929,3.60440626,3195.7,3194.2,9.50405393]
[1767795889930,3.60340626,3195.3,3194.7,0.03130184]
[1767795890137,3.60340626,3195.3,3194.4,3.83284741]
[1767795890443,3.96384689,3195.6,3194.4,3.83284741]
[1767795891232,0.36044063,3195.6,3194.5,3.80154263]
[1767795891460,0.001,3195.7,3194.7,3.80154263]
[1767795891657,0.001,3195.7,3194.9,3.80154263]
[1767795891864,0.001,3195.7,3195.1,3.80154263]
[1767795893562,0.001,3195.7,3195.2,3.12969454]
[1767795894766,0.001,3195.7,3195.1,3.80154263]
[1767795894967,3.60440626,3195.7,3194.8,3.80154263]
[1767795895144,3.96484689,3195.7,3194.8,3.80154263]
[1767795895341,3.96484689,3195.7,3194.9,3.12998417]
[1767795895578,3.96484689,3195.7,3194.8,6.93161121]
[1767795895740,3.96484689,3195.7,3194.9,7.75253104]
[1767795896142,3.96484689,3195.7,3194.9,10.88251945]
[1767795896639,3.96484689,3195.7,3194.9,7.75253104]
[1767795896859,3.96484689,3195.7,3194.9,10.88251945]
[1767795897054,3.96484689,3195.7,3194.9,7.75253104]
[1767795897368,0.001,3195.4,3195.2,0.002]
[1767795897550,0.001,3195.4,3195.2,3.80354263]
[1767795897740,0.001,3195.4,3195.3,6.93113922]
[1767795898769,0.001,3195.4,3195.3,3.80154263]
[1767795900067,0.001,3195.4,3195.3,6.93113922]
[1767795900279,0.001,3195.7,3195.4,3.6416884]
[1767795900443,0.001,3196.3,3196.0,3.6416884]
[1767795901048,0.001,3196.3,3196.0,4.4626884]
[1767795901251,0.001,3196.3,3195.7,3.67298044]
[1767795901472,3.94187614,3197.2,3196.2,3.6416884]
[1767795901673,3.94187614,3197.7,3196.2,3.6416884]
[1767795901885,3.97317798,3197.7,3196.2,3.6416884]
[1767795902055,3.61244473,3197.5,3196.3,6.25723492]
[1767795902371,3.61244473,3197.3,3196.3,7.07823492]
[1767795902672,0.36437466,3197.2,3196.3,7.0551878]
[1767795902919,3.61244473,3197.0,3196.1,0.821]
[1767795903478,3.61244473,3196.9,3195.7,3.92657034]
[1767795903771,3.61244473,3196.9,3195.4,3.16076486]
[1767795903772,3.61244473,3196.3,3195.4,3.16076486]
[1767795903947,3.61244473,3196.3,3195.5,3.12937525]
[1767795904147,0.99858856,3196.2,3195.5,3.12937525]
[1767795904343,0.99858856,3196.2,3195.4,3.16075851]
[1767795904549,0.99858856,3196.2,3195.4,3.16076958]
[1767795904780,3.61244473,3196.3,3195.4,3.16076958]
[1767795905278,3.61244473,3196.3,3195.3,3.1295103]
[1767795905480,3.61244473,3196.1,3195.2,0.002]
[1767795905659,4.43244473,3196.1,3195.2,0.002]
[1767795905861,3.61244473,3195.9,3195.2,0.002]
[1767795906892,3.61244473,3195.9,3194.9,0.002]
[1767795907068,3.61244473,3195.9,3194.0,3.130804]
[1767795907266,3.61244473,3195.8,3194.5,3.16164617]
[1767795907499,3.61244473,3195.8,3194.5,3.13034237]
[1767795907673,3.61244473,3195.6,3194.6,3.13025138]
[1767795908394,3.61244473,3195.6,3194.5,3.13035681]
[1767795909010,3.61244473,3195.6,3194.5,10.21861129]
[1767795909286,0.67414571,3195.7,3194.6,3.92657034]
[1767795909467,0.001,3195.6,3194.8,3.92657034]
[1767795909673,0.001,3195.6,3194.9,3.95787022]
[1767795910263,3.61244473,3196.2,3195.1,3.92657034]
[1767795910464,3.61244473,3196.2,3195.3,3.92657034]
[1767795910970,3.61244473,3196.0,3194.9,3.12994907]
[1767795911159,3.61244473,3196.0,3194.9,3.16124895]
[1767795911363,3.61244473,3196.0,3195.0,0.83046065]
[1767795911565,3.61244473,3196.0,3195.1,0.03129792]
[1767795912192,3.61244473,3196.0,3195.0,7.88685521]
[1767795913599,3.61244473,3196.0,3195.1,0.03129792]
[1767795914100,3.61244473,3196.3,3195.1,3.95786826]
[1767795914414,4.0556892,3196.2,3195.1,5.14477262]
[1767795914698,4.0556892,3196.2,3195.1,3.95786826]
[1767795914905,3.61244473,3196.0,3194.9,0.821]
[1767795915119,3.61244473,3195.8,3194.6,3.13027273]
[1767795915423,3.61244473,3195.6,3194.6,3.13027273]
[1767795916191,3.61244473,3195.6,3194.7,3.13017816]
[1767795916387,3.61244473,3195.6,3194.6,3.13028235]
[1767795917208,3.61244473,3195.6,3194.7,0.03130184]
[1767795917403,3.61244473,3195.6,3194.5,7.05694802]
[1767795917574,0.40556892,3195.5,3194.5,7.05694802]
[1767795917770,4.01801365,3195.5,3194.5,7.05694802]
[1767795918000,4.01801365,3195.5,3194.5,10.18732836]
[1767795918305,4.01801365,3195.5,3194.6,0.03130282]
[1767795918482,4.01801365,3195.5,3194.7,3.13018436]
[1767795918805,4.01801365,3195.5,3194.8,0.03130086]
[1767795919781,0.44324447,3195.7,3194.8,0.03130086]
[1767795920008,3.61244473,3196.1,3194.8,3.9578712]
[1767795920733,3.61244473,3196.1,3195.0,3.92657034]
[1767795921014,3.61244473,3196.1,3195.1,3.95786826]
[1767795921237,0.001,3195.6,3195.1,3.95786826]
[1767795921386,0.001,3195.6,3195.3,3.92657034]
[1767795921708,0.001,3195.6,3195.4,0.03129498]
[1767795921913,0.001,3195.6,3195.4,3.95786532]
[1767795922221,3.61244473,3196.5,3195.4,3.95786532]
[1767795922529,0.36124447,3196.4,3195.4,4.47533054]
[1767795922894,0.36124447,3196.4,3195.5,3.12940071]
[1767795923311,3.61244473,3196.5,3195.5,7.05597105]
[1767795923624,3.61244473,3196.5,3195.5,3.92657034]
[1767795923804,3.61244473,3196.5,3195.4,3.64695508]
[1767795924006,3.61244473,3196.5,3195.4,3.67825006]
[1767795924207,3.61244473,3196.5,3195.4,3.64695508]
[1767795924417,3.61244473,3196.3,3195.5,0.031294]
[1767795924613,3.61244473,3196.3,3195.4,3.64695508]
[1767795925114,3.61244473,3196.3,3195.4,0.03129498]
[1767795925467,3.61244473,3196.3,3195.4,3.16072517]
[1767795926800,3.61244473,3196.3,3195.4,10.21679416]
[1767795926995,3.61244473,3196.6,3195.7,3.92657034]
[1767795927200,4.43244473,3196.9,3195.8,3.9578614]
[1767795927395,0.44324447,3196.8,3195.8,3.9578614]
[1767795928294,3.61244473,3197.5,3195.8,3.9578614]
[1767795928511,3.61244473,3197.3,3195.8,3.9578614]
[1767795929130,3.61244473,3197.3,3196.0,3.92657034]
[1767795929334,3.61244473,3197.3,3196.0,3.95785945]
[1767795929503,0.03130184,3197.2,3196.0,3.95785945]
[1767795929705,0.36437466,3197.1,3196.1,3.92657034]
[1767795931006,3.97681939,3197.1,3196.1,3.92657034]
[1767795931316,3.61244473,3196.9,3195.9,3.12894361]
[1767795931619,3.61244473,3196.9,3195.9,3.1602337]
[1767795931819,4.01012667,3196.9,3196.0,3.12889417]
[1767795932232,4.01012667,3196.9,3196.1,3.12878417]
[1767795932636,4.01012667,3196.9,3196.0,3.1288533]
[1767795933036,4.01012667,3196.9,3195.8,0.821]
[1767795933203,3.71596217,3196.7,3195.3,3.84344141]
[1767795933402,3.71596217,3196.5,3195.5,3.12935336]
[1767795933629,3.74726401,3196.4,3195.6,3.12929634]
[1767795933818,3.74726401,3196.4,3195.5,3.12935635]
[1767795934029,3.74726401,3196.4,3195.3,5.04878555]
[1767795934230,3.71596217,3196.4,3195.4,3.12948245]
[1767795934610,4.53596217,3196.4,3194.3,3.84344141]
[1767795934937,4.53596217,3196.4,3194.8,3.13000784]
[1767795935137,3.71596217,3196.2,3194.9,3.12997592]
[1767795935337,0.3747264,3196.6,3195.0,3.87474031]
[1767795935537,8.13508056,3197.5,3195.0,3.87474031]
[1767795935538,4.56726401,3196.8,3195.2,3.84344141]
[1767795935715,3.71596217,3196.6,3195.4,3.84344141]
[1767795935920,3.71596217,3196.4,3195.4,3.84344141]
[1767795936333,3.71596217,3196.7,3195.6,3.84344141]
[1767795936532,4.53596217,3196.7,3195.7,0.03129204]
[1767795936846,3.71696217,3197.0,3195.7,3.87473345]
[1767795937335,3.71696217,3197.0,3195.9,3.84344141]
[1767795937542,3.71696217,3197.0,3196.0,0.03128911]
[1767795937710,3.71696217,3197.0,3196.0,3.87473052]
[1767795938229,3.74726401,3196.9,3195.8,0.03129106]
[1767795938436,3.71596217,3196.7,3195.6,0.03129302]
[1767795938629,3.74726401,3196.7,3195.7,3.12919469]
[1767795939032,3.71596217,3196.7,3195.8,0.03129106]
[1767795939232,3.71596217,3196.7,3195.8,3.16032348]
[1767795939413,3.71596217,3196.7,3195.8,3.12903242]
[1767795939704,0.44035833,3196.6,3195.8,3.12903242]
[1767795939905,0.44035833,3196.6,3195.8,6.28943043]
[1767795940111,0.44035833,3196.6,3195.8,6.25813937]
[1767795940411,0.44035833,3196.6,3195.7,6.97264395]
[1767795940611,0.44035833,3196.6,3195.8,3.12909342]
[1767795941838,0.44035833,3196.6,3195.7,6.97264323]
[1767795942712,0.41563205,3196.5,3195.7,6.97264323]
[1767795943052,0.41563205,3196.5,3195.7,6.97264214]
[1767795943641,4.13159422,3196.5,3195.5,0.821]
[1767795944332,4.13159422,3196.5,3195.5,3.9503357]
[1767795944513,4.13159422,3196.5,3195.7,3.12910815]
[1767795944714,3.71596217,3196.8,3195.8,3.87473247]
[1767795944918,3.71596217,3196.8,3195.8,3.84344141]
[1767795945118,0.03130184,3196.7,3195.8,3.84344141]
[1767795945518,3.71596217,3196.8,3195.8,3.84344141]
[1767795945718,3.71596217,3196.8,3195.8,6.97246654]
[1767795945949,0.001,3196.3,3195.8,6.97246654]
[1767795946149,0.001,3196.3,3195.9,0.03129009]
[1767795946441,0.001,3196.3,3195.9,3.8747315]
[1767795946643,0.001,3197.0,3195.9,3.8747315]
[1767795946945,0.3758264,3197.0,3196.1,3.84344141]
[1767795948046,0.3758264,3197.0,3196.2,3.12871534]
[1767795948215,0.3758264,3197.0,3196.2,6.97215675]
[1767795948412,0.3758264,3197.0,3196.3,3.87472758]
[1767795948613,3.12640153,3198.6,3196.8,3.46886907]
[1767795948614,6.84260608,3198.4,3196.8,3.46886907]
[1767795948927,4.53596217,3198.4,3196.8,3.46886907]
[1767795949317,3.71596217,3198.4,3196.8,3.46886907]
[1767795950264,3.71596217,3198.4,3197.0,3.84344141]
[1767795950479,0.03130184,3198.3,3197.0,3.84344141]
[1767795950949,3.71596217,3198.2,3197.0,3.84344141]
[1767795952250,0.03130184,3198.1,3197.1,3.1278346]
[1767795952618,0.03130184,3198.1,3197.1,6.97127601]
[1767795953650,0.03130184,3198.1,3197.1,10.09911061]
[1767795953851,3.71596217,3198.2,3197.3,3.84344141]
[1767795954219,3.71596217,3198.2,3197.4,3.12754112]
[1767795954620,3.71596217,3198.2,3197.3,6.97106952]
[1767795955422,3.71596217,3198.2,3197.3,3.84344141]
[1767795955942,3.71596217,3198.2,3197.3,3.12762216]
[1767795956142,1.517863,3200.5,3197.3,3.12762216]
[1767795956143,3.71596217,3199.0,3197.8,6.25429982]
[1767795956348,3.74506656,3198.9,3197.8,7.79159132]
[1767795956558,3.74506656,3198.9,3197.8,10.91874123]
[1767795956779,3.24506656,3198.9,3197.8,7.79159132]
[1767795957066,0.32450666,3198.8,3197.8,7.79159132]
[1767795957556,4.04046883,3198.8,3197.8,7.79159132]
[1767795957725,4.04046883,3198.8,3197.6,3.1273174]
[1767795957726,4.04046883,3198.8,3197.6,3.12729387]
[1767795958527,3.71596217,3198.7,3197.5,0.821]
[1767795958829,3.71596217,3198.7,3197.5,3.9484276]
[1767795959048,3.71596217,3198.7,3197.6,3.87471486]
[1767795959049,0.40404688,3198.6,3197.6,3.87471486]
[1767795960548,0.40404688,3198.6,3197.7,10.05190322]
[1767795960749,3.8832038,3199.6,3197.8,3.82867931]
[1767795960954,3.8832038,3199.5,3197.9,0.821]
[1767795962662,3.94728651,3199.3,3198.0,3.12695434]
[1767795962879,4.65457377,3199.2,3198.0,8.1576484]
[1767795964391,4.65457377,3199.2,3198.0,11.28460274]
[1767795964898,3.94728651,3199.1,3198.1,3.97159267]
[1767795965409,3.94728651,3199.1,3198.0,1.09036995]
[1767795966192,3.94728651,3199.1,3197.9,0.85227052]
[1767795966411,3.94728651,3199.1,3197.1,3.94032411]
[1767795966583,3.94728651,3199.1,3197.6,3.12728549]
[1767795966799,3.94728651,3198.9,3197.3,6.25527788]
[1767795967001,3.94728651,3198.7,3197.4,0.03127541]
[1767795967300,3.94728651,3198.5,3197.5,0.62865533]
[1767795968386,3.94728651,3198.5,3197.3,3.12763894]
[1767795968592,3.94728651,3198.5,3197.3,6.25527788]
[1767795968799,3.94728651,3198.5,3197.2,6.25547352]
[1767795969297,3.94728651,3198.5,3197.3,3.97160049]
[1767795969505,4.76628651,3198.5,3197.3,3.97160049]
[1767795969797,3.94728651,3198.5,3197.4,1.33548108]
[1767795970022,3.94728651,3198.5,3197.3,0.03127638]
[1767795970807,3.94728651,3198.5,3197.6,0.002]
[1767795972428,3.94728651,3198.3,3197.6,0.002]
[1767795979744,3.94728651,3199.0,3197.6,3.97359756]
[1767795979914,0.70728726,3199.2,3197.6,3.97359756]
[1767795979915,3.94728651,3198.8,3197.6,3.97359756]
[1767795980233,3.94728651,3198.8,3197.8,3.94032411]
[1767795980399,3.94728651,3198.8,3197.7,4.994445]
[1767795981029,3.94728651,3198.8,3197.7,1.02284842]
[1767795981231,3.94728651,3198.8,3197.6,0.823]
[1767795981429,3.94728651,3198.8,3197.6,0.002]
[1767795982346,3.94728651,3198.8,3197.6,3.94232411]
[1767795982540,4.76628651,3198.8,3197.6,3.97359756]
[1767795983050,3.94728651,3198.8,3197.6,3.97359756]
[1767795983344,4.76628651,3198.8,3197.7,1.02284842]
[1767795983518,4.76628651,3198.8,3197.6,0.002]
[1767795984039,3.94728651,3198.7,3197.6,0.002]
[1767795985853,3.94728651,3198.6,3197.6,0.002]
[1767795987660,3.94728651,3198.6,3197.3,6.25727788]
[1767795989648,3.94728651,3198.4,3197.3,0.002]
[1767795990248,3.94728651,3198.2,3197.3,0.002]
[1767795991165,3.94728651,3198.0,3196.5,3.94032411]
[1767795991462,3.94728651,3198.0,3196.6,3.12825872]
[1767795991662,3.80489498,3197.6,3196.2,3.94032411]
[1767795991837,3.80489498,3197.6,3194.5,6.31]
[1767795991838,3.80489498,3197.2,3196.0,0.002]
[1767795992245,3.80489498,3197.1,3195.7,6.25840313]
[1767795992552,3.80489498,3196.9,3195.7,6.25840313]
[1767795994765,3.80489498,3196.9,3196.0,0.002]
[1767795995065,3.80489498,3196.7,3196.0,0.002]
[1767795997170,3.80489498,3196.6,3195.6,0.002]
[1767795997769,3.80489498,3196.6,3195.6,3.13129986]
[1767795998268,3.80489498,3196.6,3195.6,0.002]
[1767795998467,3.80489498,3196.4,3195.6,0.002]
[1767795998689,3.80489498,3196.2,3195.6,0.002]
[1767796000557,3.80489498,3196.2,3195.1,9.95561759]
[1767796000868,3.80489498,3196.2,3195.2,3.69603261]
[1767796002873,3.80489498,3196.2,3195.3,9.95522579]
[1767796003280,3.80489498,3196.2,3195.3,6.8256292]
[1767796003447,4.23162343,3196.1,3195.3,3.69603261]
[1767796004746,4.23162343,3196.1,3195.4,3.12949865]
[1767796006183,4.23162343,3196.1,3195.3,6.82560835]
[1767796007483,4.23162343,3196.1,3195.4,3.69603261]
[1767796008107,4.23162343,3196.1,3195.6,0.002]
[1767796010858,0.42672845,3196.1,3195.6,3.72932563]
[1767796011065,3.80489498,3196.3,3195.6,3.72932563]
[1767796011885,0.001,3196.4,3195.7,3.69603261]
[1767796012089,3.80589498,3196.4,3195.6,0.002]
[1767796012387,3.80589498,3196.4,3195.4,6.82149822]
[1767796012558,3.80589498,3196.4,3195.6,3.1292958]
[1767796012760,0.4635895,3196.4,3195.7,3.72632465]
[1767796012984,0.001,3196.4,3195.7,3.72632465]
[1767796013690,0.001,3196.4,3195.8,3.69603261]
[1767796014073,0.001,3196.4,3196.0,3.69603261]
[1767796014896,0.001,3196.4,3195.8,3.12906503]
[1767796015196,0.001,3196.4,3195.8,6.82509764]
[1767796015489,0.001,3196.4,3195.9,3.69603261]
[1767796016085,0.001,3196.4,3196.0,3.69603261]
[1767796018400,3.80589498,3196.4,3195.6,3.69603261]
[1767796018601,3.80589498,3196.4,3195.6,6.82528422]
[1767796018786,4.18548448,3196.3,3195.7,3.12919395]
[1767796019096,3.80489498,3196.3,3195.8,3.12909302]
[1767796019389,0.001,3196.4,3195.8,3.12909302]
[1767796020468,0.001,3196.1,3195.7,7.09347405]
[1767796020670,0.001,3196.1,3195.7,10.22267891]
[1767796020875,0.001,3196.1,3195.4,3.95043261]
[1767796021103,0.001,3196.1,3195.5,7.09357251]
[1767796021302,0.001,3196.1,3195.6,3.12926812]
[1767796021707,0.001,3196.1,3195.7,3.87689975]
[1767796023000,0.001,3196.4,3195.9,3.87689975]
[1767796023295,0.001,3196.4,3196.0,3.90818886]
[1767796023796,3.75264406,3196.4,3195.6,3.12927525]
[1767796024100,3.75164406,3196.2,3195.7,3.1291818]
[1767796024269,3.75164406,3196.2,3195.6,3.12922889]
[1767796024596,0.37526441,3196.3,3195.7,3.12920018]
[1767796025379,0.37526441,3196.3,3195.6,7.00620254]
[1767796025578,0.001,3196.4,3195.7,3.90819179]
[1767796026099,0.001,3196.4,3195.7,3.87689975]
[1767796026301,3.75264406,3196.4,3195.6,3.12930279]
[1767796026477,3.75264406,3196.4,3195.5,7.00628163]
[1767796026678,0.001,3196.4,3195.6,3.87689975]
[1767796026881,0.001,3196.4,3195.7,3.90819179]
[1767796027393,0.001,3196.4,3195.7,3.87689975]
[1767796027997,3.75264406,3196.4,3195.7,7.00604861]
[1767796028205,3.75264406,3196.4,3195.7,3.87689975]
[1767796028405,3.75264406,3196.4,3195.6,3.12926394]
[1767796028771,3.75264406,3196.4,3195.3,0.002]
[1767796029012,6.37329298,3195.4,3194.4,3.87889975]
[1767796029170,4.25847845,3195.3,3194.4,3.87889975]
[1767796029378,10.12493704,3195.2,3194.4,0.002]
[1767796029612,3.75164406,3195.2,3194.1,3.87689975]
[1767796029814,4.12680847,3195.1,3194.1,3.87689975]
[1767796030115,3.75164406,3195.0,3194.1,3.87689975]
[1767796031102,3.75164406,3195.0,3194.1,7.00765215]
[1767796031320,0.37516441,3195.1,3194.2,3.87689975]
[1767796031832,3.75164406,3195.8,3194.7,3.87689975]
[1767796031971,3.75164406,3195.8,3194.7,7.00707787]
[1767796032587,3.75164406,3195.8,3194.8,3.87689975]
[1767796033576,3.75164406,3195.7,3194.8,3.87689975]
[1767796033777,4.43971936,3195.6,3194.8,3.87689975]
[1767796035634,4.43971936,3195.6,3194.7,3.13018155]
[1767796035792,4.43971936,3195.6,3194.6,3.13019761]
[1767796036179,4.43971936,3195.6,3194.6,3.13028235]
[1767796036415,4.43971936,3195.6,3194.6,7.0071821]
[1767796036622,4.195616,3195.5,3194.6,7.0071821]
[1767796040109,3.75164406,3195.7,3194.7,3.87689975]
[1767796040635,3.75164406,3195.7,3194.5,3.87689975]
[1767796040823,3.75164406,3195.4,3194.4,0.002]
[1767796041114,3.75164406,3195.3,3194.4,0.002]
[1767796041492,3.75164406,3195.3,3194.4,3.87889975]
[1767796041686,3.75164406,3195.3,3194.4,4.76562646]
[1767796042128,3.75164406,3195.6,3194.6,3.87689975]
[1767796042326,3.75164406,3195.6,3194.8,3.87689975]
[1767796043114,3.75164406,3195.6,3194.9,3.87689975]
[1767796044049,3.75164406,3195.9,3194.9,3.87689975]
[1767796044251,0.001,3196.1,3195.1,3.87689975]
[1767796045025,0.001,3196.1,3195.2,3.87689975]
[1767796045604,3.75264406,3196.1,3195.2,3.87689975]
[1767796045834,3.75264406,3196.1,3195.0,3.9572947]
[1767796046135,3.75264406,3196.1,3195.0,3.87689975]
[1767796046535,3.75264406,3196.1,3194.9,3.1299561]
[1767796046934,3.75264406,3196.1,3194.8,7.00694164]
[1767796047129,3.75264406,3196.1,3194.9,3.12997506]
[1767796047329,3.75164406,3196.0,3194.9,3.12997506]
[1767796047637,3.75164406,3195.8,3194.9,3.12997506]
[1767796048427,0.68815404,3195.9,3195.0,3.87689975]
[1767796048610,3.75264406,3196.1,3195.0,3.87689975]
[1767796049910,6.88148368,3196.1,3195.1,3.87689975]
[1767796050111,3.75164406,3196.0,3195.0,3.12984797]
[1767796050738,3.75164406,3196.0,3194.9,3.87689975]
[1767796050945,3.75164406,3195.8,3194.9,3.87689975]
[1767796052339,3.99211734,3195.7,3194.7,0.002]
[1767796052524,3.99211734,3195.7,3194.7,6.96201626]
[1767796052844,3.99211734,3195.7,3194.9,6.95979473]
[1767796053046,3.99211734,3195.7,3195.0,0.0312989]
[1767796053345,3.99211734,3195.7,3194.9,3.82983307]
[1767796053346,4.47332907,3195.7,3194.9,3.82983307]
[1767796053916,3.99211734,3195.9,3195.0,3.82983307]
[1767796054115,3.99211734,3195.8,3195.0,3.82983307]
[1767796054528,3.99211734,3195.8,3194.8,3.82983307]
[1767796054730,3.99211734,3195.8,3194.8,6.95991134]
[1767796055843,3.99211734,3195.8,3195.0,3.82983307]
[1767796056046,0.82,3196.0,3195.3,3.82983307]
[1767796056420,7.94198791,3196.1,3195.3,3.86112903]
[1767796056623,7.94198791,3196.1,3195.3,3.82983307]
[1767796056820,3.99211734,3196.0,3195.3,3.82983307]
[1767796057044,4.78631613,3195.9,3195.1,3.82983307]
[1767796058324,0.001,3195.6,3195.1,3.82983307]
[1767796058727,3.99311734,3195.6,3194.8,3.82983307]
[1767796059925,3.99311734,3195.6,3194.8,6.95986137]
[1767796060142,3.99311734,3195.6,3194.8,3.82983307]
[1767796060421,0.001,3195.6,3194.9,3.82983307]
[1767796063122,0.001,3195.6,3194.8,3.95106258]
[1767796063123,3.99311734,3195.6,3194.8,0.821]
[1767796063653,3.99311734,3195.6,3194.7,3.13214447]
[1767796063852,3.99311734,3195.6,3194.7,0.002]
[1767796064156,3.99311734,3195.6,3194.7,3.13215099]
[1767796064454,4.39142907,3195.5,3194.7,3.13215099]
[1767796064753,0.001,3195.6,3194.8,3.8369635]
[1767796065632,0.001,3195.6,3194.8,3.82983307]
[1767796066759,0.001,3195.6,3194.8,6.95983534]
[1767796067257,3.99311734,3195.6,3194.7,0.002]
[1767796067653,3.99311734,3195.6,3194.7,3.13216623]
[1767796067853,0.39931173,3195.5,3194.7,3.13216623]
[1767796068047,0.39931173,3195.5,3194.7,6.9619993]
[1767796068955,0.39931173,3195.5,3194.8,3.82983307]
[1767796069138,0.001,3195.6,3195.0,3.82983307]
[1767796069341,0.001,3195.6,3194.8,3.82983307]
[1767796070836,0.001,3195.6,3195.0,3.82983307]
[1767796071037,0.001,3195.6,3195.0,6.96170403]
[1767796071467,0.001,3195.6,3195.1,3.86113099]
[1767796071831,0.001,3195.6,3195.1,3.82983307]
[1767796073161,0.001,3195.6,3195.1,6.9595468]
[1767796074967,0.001,3195.6,3195.0,1.01117642]
[1767796075354,0.001,3195.6,3195.0,4.1410355]
[1767796076268,0.001,3195.6,3195.1,3.82983307]
[1767796076763,0.001,3195.6,3195.2,3.86113001]
[1767796076971,0.001,3195.6,3195.2,3.82983307]
[1767796077260,0.001,3195.6,3195.4,3.82983307]
[1767796078654,0.001,3195.6,3195.2,6.95947816]
[1767796078863,0.001,3195.6,3195.2,3.12969179]
[1767796079167,0.001,3195.6,3195.0,3.13183186]
[1767796080264,4.26127944,3195.6,3195.0,0.002]
[1767796080463,4.26127944,3195.6,3194.6,0.002]
[1767796080855,4.26127944,3195.6,3194.6,3.80633434]
[1767796081029,4.26127944,3195.6,3194.6,6.93656441]
[1767796081234,3.86096771,3195.5,3194.6,0.002]
[1767796081463,3.86096771,3195.3,3194.6,3.13227272]
[1767796081763,3.86096771,3195.3,3194.6,0.002]
[1767796082737,3.86096771,3195.3,3194.2,3.13061381]
[1767796083035,3.86096771,3195.3,3194.3,3.13056273]
[1767796083235,3.86096771,3195.3,3194.2,3.13067434]
[1767796083438,3.68929504,3195.1,3194.2,6.26134868]
[1767796083632,3.68929504,3195.1,3194.2,7.0633016]
[1767796084037,3.68929504,3195.1,3194.0,0.002]
[1767796084567,3.68929504,3195.1,3194.0,3.93462726]
[1767796084774,3.68929504,3195.1,3194.0,7.0654865]
[1767796084973,4.08860677,3195.0,3194.1,3.93262726]
[1767796085278,3.68929504,3195.0,3194.1,3.93262726]
[1767796085479,3.68929504,3195.0,3194.1,3.93062726]
[1767796085676,3.68929504,3195.0,3194.1,3.96193498]
[1767796085849,6.81920224,3195.0,3194.1,3.96193498]
[1767796086050,0.68192022,3194.9,3194.3,0.002]
[1767796087392,3.68929504,3195.0,3194.3,0.002]
[1767796087393,3.69029504,3195.3,3194.3,3.96593302]
[1767796087548,3.69029504,3195.3,3194.4,3.93262726]
[1767796088161,6.81989957,3195.3,3194.4,3.93262726]
[1767796088350,3.68929504,3195.2,3194.4,3.93262726]
[1767796090389,3.68929504,3195.2,3194.4,7.06310218]
[1767796090551,0.3690295,3195.1,3194.4,7.06310218]
[1767796090752,0.3690295,3195.1,3194.4,7.06309762]
[1767796091054,0.3690295,3195.1,3194.5,3.96393106]
[1767796091256,0.001,3195.3,3194.5,3.93262726]
[1767796091456,0.001,3195.3,3194.7,3.93262726]
[1767796092489,0.001,3195.3,3194.8,3.93262726]
[1767796093564,3.69029504,3195.3,3194.5,3.93262726]
[1767796093961,3.69029504,3195.3,3194.3,3.13251532]
[1767796094202,3.69029504,3195.3,3194.3,0.002]
[1767796094203,3.68929504,3195.1,3194.3,0.002]
[1767796095813,3.68929504,3195.0,3194.0,3.92462726]
[1767796096486,3.12998841,3194.9,3194.0,3.92462726]
[1767796096893,3.68929504,3194.8,3193.7,3.93262726]
[1767796097077,3.73929504,3194.4,3193.7,3.93262726]
[1767796097476,3.73929504,3194.4,3193.6,0.002]
[1767796097890,3.73929504,3194.4,3193.4,0.002]
[1767796098495,3.68929504,3194.2,3193.4,0.002]
[1767796099105,3.68929504,3194.2,3193.4,3.93462726]
[1767796099298,3.18050008,3194.4,3193.5,0.0313136]
[1767796099299,0.05,3194.4,3193.5,0.0313136]
[1767796099601,3.18048685,3194.4,3193.5,3.93262726]
[1767796100801,10.00026874,3194.4,3193.5,3.93262726]
[1767796100981,6.86978189,3194.4,3193.5,3.93262726]
[1767796101805,3.73929504,3194.4,3193.5,7.06397252]
[1767796102109,0.4190295,3194.4,3193.6,3.96393988]
[1767796102877,0.05,3194.4,3193.8,3.93262726]
[1767796103404,0.05,3194.4,3193.8,3.96393792]
[1767796103605,0.05,3194.4,3193.8,3.93262726]
[1767796103782,0.05,3194.4,3193.8,3.96393792]
[1767796104110,0.05,3194.4,3193.8,3.93262726]
[1767796104310,0.05,3194.4,3193.9,3.93262726]
[1767796104906,0.05,3194.4,3194.1,3.93262726]
[1767796105982,0.05,3194.4,3194.3,3.93262726]
[1767796106612,0.001,3194.8,3194.4,3.93262726]
[1767796109197,0.001,3194.8,3194.4,7.0630796]
[1767796109510,0.001,3194.8,3194.4,3.93262726]
[1767796110087,0.001,3194.8,3194.2,3.93262726]
[1767796110391,0.001,3194.8,3194.2,3.77662726]
[1767796110797,0.001,3194.8,3194.2,6.90721489]
[1767796110798,0.001,3194.5,3194.2,6.90721489]
[1767796111016,0.001,3194.5,3194.2,4.86262555]
[1767796111315,0.001,3194.5,3194.2,7.99326497]
[1767796111810,0.001,3194.5,3194.3,3.93262726]
[1767796113421,0.001,3194.5,3194.3,7.06319303]
[1767796113721,0.001,3194.5,3194.4,3.9292152]
[1767796114709,0.001,3194.5,3194.3,3.13056577]
[1767796115026,0.001,3194.5,3194.2,7.05985424]
[1767796116518,0.001,3194.5,3194.2,3.13063904]
[1767796117319,0.001,3194.5,3194.2,7.05985424]
[1767796117817,0.001,3194.5,3194.3,3.9292152]
[1767796118018,0.001,3194.5,3194.3,3.96052096]
[1767796118207,0.001,3194.5,3194.3,4.4628124]
[1767796118593,0.001,3194.5,3194.4,7.05969353]
[1767796119520,0.001,3194.5,3194.4,3.9292152]
[1767796120618,0.001,3195.3,3194.8,3.9292152]
[1767796121793,3.79397737,3195.3,3194.5,3.9292152]
[1767796121992,4.486316,3195.3,3194.5,3.9292152]
[1767796122193,0.001,3195.0,3194.5,3.9292152]
[1767796122801,0.001,3195.0,3194.4,3.13047833]
[1767796123020,3.79397737,3195.0,3194.4,3.13047833]